[Event "Norm Congress-GM 2019"]
[Site "Saint Louis"]
[Date "2019.05.19"]
[Round "6.4"]
[White "Wang, Justin"]
[Black "Banawa, Joel"]
[Result "1-0"]
[ECO "C96"]
[WhiteElo "2434"]
[BlackElo "2396"]
[Annotator "RC"]
[PlyCount "93"]
[EventDate "2019.05.16"]
[EventType "tourn"]
[EventCountry "USA"]
[SourceTitle "playchess.com"]
[Source "ChessBase"]
[SourceQuality "1"]
[TimeControl "5400+30"]

1. e4 {[%emt 0:00:00]} e5 {[%emt 0:01:33]} 2. Nf3 {[%emt 0:00:00]} Nc6 {[%emt 0:00:04]} 3. Bb5 {[%emt 0:00:01]} a6 {[%emt 0:00:04]} 4. Ba4 {[%emt 0:00:25]} Nf6 {[%emt 0:00:04]} 5. O-O {[%emt 0:00:18]} Be7 {[%emt 0:02:39]} 6. Re1 {[%emt 0:00:33]} b5 {[%emt 0:00:06]} 7. Bb3 {[%emt 0:00:07]} d6 {[%emt 0:00:04]} 8. c3 {[%emt 0:00:42]} O-O {[%emt 0:00:06]} 9. h3 {[%emt 0:00:26]} Na5 {[%emt 0:00:07]} 10. Bc2 {[%emt 0:00:33]} c5 {[%emt 0:00:07]} 11. d4 {[%emt 0:00:38]} Nd7 {[%emt 0:00:11]} 12. d5 {[%emt 0:07:54]} Nb6 {[%emt 0:02:05]} 13. Nbd2 {[%emt 0:02:26]} g6 {[%emt 0:00:36]} 14. Nf1 {[%emt 0:03:59]} f5 {[%emt 0:06:14]} 15. exf5 {[%emt 0:06:20]} gxf5 {[%emt 0:00:13]} 16. Ng3 {[%emt 0:02:22]} e4 {[%emt 0:29:45]} 17. Nh2 {[%emt 0:02:25]} Qe8 {[%emt 0:00:46]} 18. Nh5 {[%emt 0:11:19]} Qf7 {[%emt 0:02:43]} 19. Bh6 {[%emt 0:05:17]} Re8 {[%emt 0:03:47]} 20. Re3 {[%emt 0:01:30]} Bh4 {[%emt 0:02:21]} 21. Nf4 {[%emt 0:20:07]} Nac4 {[%emt 0:02:28]} 22. Nf1 {[%emt 0:03:15]} Nxb2 {[%emt 0:08:53]} 23. Qe2 {[%emt 0:03:38]} N2c4 {[%emt 0:01:42]} 24. Rg3+ {[%emt 0:01:02]} Bxg3 {[%emt 0:00:04]} 25. Nxg3 {[%emt 0:00:02]} Kh8 {[%emt 0:14:47]} 26. Bg5 {[%emt 0:02:14]} Rg8 {[%emt 0:03:48]} 27. Qh5 {[%emt 0:01:30]} Qg7 {[%emt 0:04:04]} 28. Nxe4 {[%emt 0:02:58]} Nd7 {[%emt 0:04:01]} 29. Bh6 {[%emt 0:07:59]} Qe7 {[%emt 0:00:13]} 30. Ng5 {[%emt 0:01:25]} Nde5 {[%emt 0:02:13]} 31. Nfe6 {[%emt 0:03:12]} Qf6 {[%emt 0:05:18]} 32. f4 {[%emt 0:03:49]} Qg6 {[%emt 0:00:24]} 33. Bd1 {[%emt 0:02:27]} Ra7 {[%emt 0:03:14]} 34. fxe5 {[%emt 0:00:34]} Nxe5 {[%emt 0:00:03]} 35. h4 {[%emt 0:03:06]} Qf6 {[%emt 0:00:15]} 36. Be2 {[%emt 0:01:07]} Rg6 {[%emt 0:02:11]} 37. Bf8 {[%emt 0:00:46]} Bxe6 {[%emt 0:00:02]} 38. Nxe6 {[%emt 0:00:08]} Rd7 {[%emt 0:00:24]} 39. Rf1 {[%emt 0:00:09]} Rf7 {[%emt 0:00:58]} 40. Bxd6 {[%emt 0:00:36]} Nd7 {[%emt 0:00:34]} 41. Bf4 {[%emt 0:01:56]} Qxc3 {[%emt 0:00:11]} 42. Qf3 {[%emt 0:00:25]} Qb2 {[%emt 0:00:16]} 43. h5 {[%emt 0:00:28]} Rg8 {[%emt 0:00:19]} 44. Qe3 {[%emt 0:00:46]} Re8 {[%emt 0:01:16]} 45. h6 {[%emt 0:00:11]} Rf6 {[%emt 0:00:08]} 46. Bg5 {[%emt 0:00:26]} Rf7 {[%emt 0:00:57]} 47. Bh5 {[%emt 0:00:10]} 1-0

[Event "Norm Congress-GM 2019"]
[Site "Saint Louis"]
[Date "2019.05.19"]
[Round "7.3"]
[White "Abrahamyan, Tatev"]
[Black "Wang, Justin"]
[Result "0-1"]
[ECO "C55"]
[WhiteElo "2373"]
[BlackElo "2434"]
[Annotator "RC"]
[PlyCount "90"]
[EventDate "2019.05.16"]
[EventType "tourn"]
[EventCountry "USA"]
[SourceTitle "playchess.com"]
[Source "ChessBase"]
[SourceQuality "1"]
[TimeControl "5400+30"]

1. e4 {[%emt 0:00:00]} e5 {[%emt 0:00:00]} 2. Nf3 {[%emt 0:00:00]} Nc6 {[%emt 0:00:07]} 3. Bc4 {[%emt 0:00:00]} Nf6 {[%emt 0:00:43]} 4. d3 {[%emt 0:02:09]} h6 {[%emt 0:02:19]} 5. O-O {[%emt 0:03:10]} d6 {[%emt 0:02:48]} 6. a4 {[%emt 0:03:09]} g5 7. a5 a6 {[%emt 0:01:39]} 8. c3 {[%emt 0:00:37]} Bg7 {[%emt 0:01:30]} 9. Nbd2 {[%emt 0:06:40]} O-O {[%emt 0:03:43]} 10. h3 {[%emt 0:06:06]} d5 {[%emt 0:05:11]} 11. Bb3 {[%emt 0:03:37]} Be6 {[%emt 0:10:02]} 12. Re1 {[%emt 0:03:24]} Re8 {[%emt 0:05:29]} 13. Qc2 {[%emt 0:07:26]} Nh5 {[%emt 0:02:06]} 14. Nf1 {[%emt 0:05:05]} Nf4 {[%emt 0:04:59]} 15. Ng3 {[%emt 0:18:35]} dxe4 {[%emt 0:04:30]} 16. dxe4 {[%emt 0:00:11]} Qd3 {[%emt 0:00:59]} 17. Be3 {[%emt 0:03:00]} Rad8 {[%emt 0:03:26]} 18. Red1 {[%emt 0:02:28]} Qxc2 {[%emt 0:01:48]} 19. Bxc2 {[%emt 0:00:41]} Rxd1+ {[%emt 0:01:31]} 20. Bxd1 {[%emt 0:00:07]} Rd8 {[%emt 0:00:51]} 21. Nd2 {[%emt 0:03:05]} Nd3 {[%emt 0:03:51]} 22. b4 {[%emt 0:02:31]} Nd4 {[%emt 0:02:54]} 23. Bg4 {[%emt 0:21:14]} Nc2 {[%emt 0:02:51]} 24. Rb1 {[%emt 0:00:48]} Ba2 {[%emt 0:00:40]} 25. Rf1 {[%emt 0:01:03]} Nxe3 {[%emt 0:02:04]} 26. fxe3 {[%emt 0:00:03]} Nxb4 {[%emt 0:00:31]} 27. cxb4 {[%emt 0:01:55]} Rxd2 {[%emt 0:00:09]} 28. Bc8 {[%emt 0:00:05]} Bf8 {[%emt 0:04:45]} 29. Bxb7 {[%emt 0:00:03]} Bxb4 {[%emt 0:00:33]} 30. Nf5 {[%emt 0:00:17]} Be6 {[%emt 0:01:13]} 31. Bxa6 {[%emt 0:00:51]} Bxa5 {[%emt 0:00:29]} 32. Nxh6+ {[%emt 0:01:18]} Kg7 {[%emt 0:00:25]} 33. Ng4 {[%emt 0:00:28]} Bb6 {[%emt 0:02:48]} 34. Nxe5 {[%emt 0:00:49]} Bxe3+ {[%emt 0:00:25]} 35. Kh1 {[%emt 0:00:09]} Bf4 {[%emt 0:01:14]} 36. Nf3 {[%emt 0:00:46]} Ra2 {[%emt 0:05:07]} 37. Bb7 {[%emt 0:00:32]} c5 {[%emt 0:04:47]} 38. Bd5 {[%emt 0:00:13]} c4 {[%emt 0:00:19]} 39. Nd4 {[%emt 0:02:51]} Bxd5 {[%emt 0:00:49]} 40. exd5 {[%emt 0:00:04]} Rd2 {[%emt 0:00:25]} 41. Nf5+ {[%emt 0:02:24]} Kg6 {[%emt 0:00:49]} 42. Ne7+ {[%emt 0:00:54]} Kf6 {[%emt 0:00:47]} 43. Nc6 {[%emt 0:00:05]} c3 {[%emt 0:00:52]} 44. Nb4 {[%emt 0:00:13]} Kg6 {[%emt 0:00:34]} 45. g3 {[%emt 0:01:26]} Bd6 {[%emt 0:01:07]} 0-1

[Event "Norm Congress-GM 2019"]
[Site "Saint Louis"]
[Date "2019.05.19"]
[Round "7.5"]
[White "Jacobson, Brandon"]
[Black "Boros, Denes"]
[Result "0-1"]
[ECO "C42"]
[WhiteElo "2503"]
[BlackElo "2439"]
[Annotator "ChessBase"]
[PlyCount "64"]
[EventDate "2019.05.16"]
[EventType "tourn"]
[EventCountry "USA"]
[SourceTitle "playchess.com"]
[Source "ChessBase"]
[SourceQuality "1"]
[TimeControl "5400+30"]

1. e4 {[%emt 0:00:00]} e5 {[%emt 0:00:00]} 2. Nf3 {[%emt 0:00:00]} Nf6 {[%emt 0:00:03]} 3. Nc3 {[%emt 0:00:42]} Bb4 {[%emt 0:00:38]} 4. Bd3 {[%emt 0:11:59]} O-O {[%emt 0:02:44]} 5. O-O {[%emt 0:04:15]} Re8 {[%emt 0:06:14]} 6. Re1 {[%emt 0:15:26]} c6 {[%emt 0:11:16]} 7. a3 {[%emt 0:15:32]} Ba5 {[%emt 0:02:39]} 8. b4 {[%emt 0:04:17]} Bc7 {[%emt 0:03:24]} 9. Bb2 {[%emt 0:03:19]} a5 {[%emt 0:03:03]} 10. h3 {[%emt 0:02:50]} h6 {[%emt 0:00:52]} 11. Bf1 {[%emt 0:11:57]} d6 {[%emt 0:09:13]} 12. d4 {[%emt 0:00:04]} Nbd7 {[%emt 0:00:24]} 13. Bc4 {[%emt 0:07:17]} Qe7 {[%emt 0:05:01]} 14. Bb3 {[%emt 0:00:47]} Nf8 {[%emt 0:03:28]} 15. Qd3 {[%emt 0:07:56]} Ng6 {[%emt 0:04:32]} 16. Ne2 {[%emt 0:00:36]} axb4 {[%emt 0:03:04]} 17. axb4 {[%emt 0:01:27]} Rxa1 {[%emt 0:00:05]} 18. Bxa1 {[%emt 0:00:01]} exd4 {[%emt 0:05:18]} 19. Nexd4 {[%emt 0:01:01]} d5 {[%emt 0:02:31]} 20. e5 {[%emt 0:05:32]} Ne4 {[%emt 0:01:03]} 21. b5 {[%emt 0:00:02]} Qc5 {[%emt 0:08:49]} 22. bxc6 {[%emt 0:00:36]} bxc6 {[%emt 0:00:04]} 23. Ba4 {[%emt 0:04:30]} Bd7 {[%emt 0:15:35]} 24. c4 {[%emt 0:00:01]} Nxe5 {[%emt 0:00:33]} 25. Nxe5 {[%emt 0:00:27]} Rxe5 {[%emt 0:00:58]} 26. cxd5 {[%emt 0:00:50]} Qxd5 {[%emt 0:01:54]} 27. Qa6 {[%emt 0:01:23]} Qa2 {[%emt 0:04:45]} 28. Nc2 {[%emt 0:00:38]} Ra5 {[%emt 0:00:47]} 29. Qd3 {[%emt 0:00:31]} Qxa4 {[%emt 0:02:04]} 30. Qxe4 {[%emt 0:00:31]} Qxe4 {[%emt 0:00:41]} 31. Rxe4 {[%emt 0:00:03]} Ra2 {[%emt 0:00:11]} 32. Rc4 {[%emt 0:00:55]} Bf5 {[%emt 0:01:28]} 0-1